bitfinex-derivatives/quotes_ETHF0:USTF0_20260120
["timestamp","ask_amount","ask_price","bid_price","bid_amount"]
[1768940031740,1.18219577,2990.3,2989.0,1.36995456]
[1768940031941,0.30116655,2990.2,2989.0,1.36995456]
[1768940032142,0.30116655,2990.1,2989.0,1.36995456]
[1768940032343,1.7733,2990.4,2989.0,1.36995456]
[1768940032644,1.18220766,2990.3,2989.0,1.36995456]
[1768940032951,0.30116999,2990.2,2989.3,1.17662756]
[1768940033249,0.30116999,2990.1,2989.3,1.17662756]
[1768940033444,2.94992756,2990.4,2989.3,1.17662756]
[1768940033644,1.18222416,2990.3,2989.3,1.17662756]
[1768940033946,0.30117517,2990.2,2989.3,1.17662756]
[1768940034142,0.30117517,2990.2,2989.0,2.54658212]
[1768940034143,1.7733,2990.4,2989.7,1.17662756]
[1768940034449,0.30119675,2990.3,2989.7,1.17662756]
[1768940034649,1.7733,2990.4,2989.7,1.17662756]
[1768940034851,0.30118017,2990.3,2989.7,1.17662756]
[1768940035041,1.7733,2990.4,2989.7,1.17662756]
[1768940035246,0.30118142,2990.3,2989.7,1.17662756]
[1768940035556,1.7733,2990.4,2989.7,1.17662756]
[1768940035746,0.30119035,2990.3,2989.7,1.17662756]
[1768940036050,1.7733,2990.4,2989.7,1.17662756]
[1768940036251,0.30119469,2990.3,2989.7,1.17662756]
[1768940036448,0.30119469,2990.2,2989.5,1.17662756]
[1768940036653,2.94992756,2990.4,2989.3,1.17662756]
[1768940036953,0.30127347,2990.3,2989.3,1.17662756]
[1768940037149,0.30127347,2990.2,2989.3,1.17662756]
[1768940037347,2.94992756,2990.4,2989.3,1.17662756]
[1768940037655,0.3013807,2990.3,2989.3,1.17662756]
[1768940037854,0.3013807,2990.2,2989.3,1.17662756]
[1768940038056,2.94992756,2990.4,2989.3,1.17662756]
[1768940038255,1.18311,2990.3,2989.3,1.17662756]
[1768940038452,0.30160441,2990.2,2989.3,1.17662756]
[1768940038656,0.30160441,2990.1,2989.3,1.17662756]
[1768940038858,1.7733,2990.4,2989.1,1.36995456]
[1768940039058,1.18331921,2990.3,2989.1,1.36995456]
[1768940039362,0.30160549,2990.2,2989.1,1.36995456]
[1768940039559,0.30160549,2990.1,2988.9,0.16749]
[1768940040655,0.30160549,2990.1,2989.0,1.17664396]
[1768940040859,1.46370766,2990.6,2989.1,1.36995456]
[1768940041063,1.46370766,2990.4,2988.7,4.3803558]
[1768940041361,1.46370766,2990.2,2988.8,1.17664396]
[1768940041545,0.30159143,2990.1,2988.8,1.17664396]
[1768940041745,1.46370766,2990.2,2988.8,2.54659852]
[1768940041950,0.29252061,2990.1,2988.9,1.36995456]
[1768940042146,1.46370766,2990.4,2988.9,1.36995456]
[1768940042353,1.17047952,2990.3,2988.9,1.36995456]
[1768940042558,1.46370766,2989.8,2988.4,4.21456174]
[1768940042762,1.75622025,2989.7,2988.3,0.0027811]
[1768940042950,0.29251259,2989.6,2988.3,0.0027811]
[1768940043158,1.46370766,2989.7,2988.3,0.0027811]
[1768940043358,0.29246083,2989.6,2988.3,0.0027811]
[1768940043554,1.46370766,2989.7,2988.3,0.0027811]
[1768940043756,0.29243118,2989.6,2988.3,0.0027811]
[1768940043958,1.46370766,2989.7,2988.3,0.0027811]
[1768940044256,0.29243098,2989.6,2988.3,0.0027811]
[1768940044457,1.8906,2989.6,2988.3,0.0027811]
[1768940044965,1.46370766,2989.5,2988.3,0.0027811]
[1768940045260,0.29236827,2989.4,2988.3,0.0027811]
[1768940045562,2.63332059,2989.3,2988.3,0.0027811]
[1768940045885,0.29236827,2989.2,2988.3,0.0027811]
[1768940046159,1.46370766,2989.3,2988.3,0.0027811]
[1768940046462,0.29229521,2989.2,2988.3,0.0027811]
[1768940046662,1.46370766,2989.3,2988.3,0.0027811]
[1768940046859,0.29218407,2989.2,2988.3,0.0027811]
[1768940047059,1.46370766,2989.3,2988.3,0.0027811]
[1768940047252,0.29218279,2989.2,2988.3,0.0027811]
[1768940047455,1.8906,2989.6,2988.3,0.0027811]
[1768940047652,1.16878962,2989.5,2988.3,0.0027811]
[1768940047866,1.16878962,2989.4,2988.3,0.0027811]
[1768940048053,0.29209872,2989.3,2988.3,0.0027811]
[1768940048257,3.35430766,2989.6,2988.3,0.0027811]
[1768940048573,1.16856337,2989.5,2988.3,0.0027811]
[1768940048864,0.29204154,2989.4,2988.3,0.0027811]
[1768940049062,1.8906,2989.6,2988.3,0.0027811]
[1768940049265,1.1685815,2989.5,2988.3,0.0027811]
[1768940049563,0.29204578,2989.4,2988.3,0.0027811]
[1768940049761,1.8906,2989.6,2988.3,0.0027811]
[1768940049960,1.16839647,2989.5,2988.3,0.0027811]
[1768940050163,0.29199193,2989.4,2988.3,0.0027811]
[1768940050368,1.8906,2989.6,2988.3,0.0027811]
[1768940051464,1.8906,2989.6,2988.3,1.37273566]
[1768940052867,1.8906,2989.6,2988.3,1.54025566]
[1768940053068,1.8906,2989.6,2988.6,1.36995456]
[1768940053266,1.46370766,2990.4,2988.8,1.36995456]
[1768940053568,1.46626487,2990.8,2989.0,1.36995456]
[1768940053764,1.16840829,2990.7,2989.0,1.36995456]
[1768940053962,1.46370766,2990.5,2988.9,0.16749]
[1768940055671,1.46370766,2990.5,2988.9,1.54975966]
[1768940057373,1.6828,2990.6,2989.3,0.16746]
[1768940057573,1.6828,2990.6,2989.3,1.54972966]
[1768940058366,1.6828,2990.6,2989.3,3.49772966]
[1768940058572,1.40569969,2990.5,2989.3,0.16746]
[1768940059671,1.40569969,2990.5,2988.9,7.7416709]
[1768940059672,1.40569969,2990.5,2988.9,1.948]
[1768940062366,1.6828,2990.6,2989.0,1.38226966]
[1768940062573,1.6828,2990.6,2989.2,1.38226966]
[1768940062768,1.6828,2990.6,2989.4,0.16746]
[1768940063269,3.08849969,2990.6,2989.4,0.16746]
[1768940065569,3.08849969,2990.6,2988.9,4.95840124]
[1768940065770,1.40569969,2990.5,2988.8,4.5601709]
[1768940065969,1.40569969,2990.5,2989.0,1.948]
[1768940066973,1.6828,2990.6,2989.1,0.16748]
[1768940067175,1.6828,2990.6,2989.1,1.54974966]
[1768940068278,0.00255721,2990.8,2989.1,1.54974966]
[1768940069680,1.4082569,2990.8,2989.1,1.54974966]
[1768940070774,3.29419969,2990.7,2989.1,1.54974966]
[1768940071274,3.29419969,2990.7,2988.8,3.01040124]
[1768940071275,1.40569969,2990.6,2988.8,3.01040124]
[1768940071473,1.40569969,2990.6,2988.9,1.948]
[1768940074571,1.57309969,2990.6,2988.9,1.948]
[1768940076672,1.40569969,2990.4,2988.9,1.948]
[1768940076876,1.57310969,2990.4,2988.9,1.948]
[1768940077173,1.57310969,2990.4,2988.7,3.349]
[1768940077174,1.57311969,2990.2,2988.3,4.395452]
[1768940077372,1.57311969,2990.2,2988.4,1.948]
[1768940077879,1.40569969,2990.0,2988.4,1.948]
[1768940078280,1.57313969,2989.8,2988.4,1.948]
[1768940078579,1.40569969,2989.6,2988.3,0.0027811]
[1768940078781,1.40569969,2989.4,2988.3,0.0027811]
[1768940086585,1.40569969,2989.4,2987.6,0.16756]
[1768940087389,1.58885661,2989.2,2987.4,0.85696723]
[1768940087587,1.58885661,2989.2,2987.4,0.85933255]
[1768940088789,1.58885661,2989.2,2987.4,0.00236532]
[1768940089192,1.42138661,2989.0,2987.4,0.00236532]
[1768940090189,1.58887661,2989.0,2987.4,0.00236532]
[1768940090390,3.4,2989.3,2987.4,0.00236532]
[1768940090391,1.42138661,2988.6,2987.4,0.00236532]
[1768940090693,1.42439315,2988.6,2987.4,0.00236532]
[1768940091491,1.68556417,2988.6,2987.4,0.00236532]
[1768940092890,1.42439315,2988.6,2987.4,0.00236532]
[1768940097498,2.67119315,2988.6,2987.4,0.00236532]
[1768940097695,1.42138661,2988.5,2987.4,0.00236532]
[1768940098198,1.58890661,2988.3,2987.4,0.00236532]
[1768940098891,2.67119315,2988.6,2987.4,0.00236532]
[1768940100296,1.24980654,2988.6,2987.4,1.47385336]
[1768940100604,1.24980654,2988.6,2987.4,0.00236532]
[1768940100795,2.67119315,2988.6,2987.4,0.00236532]
[1768940102800,1.24980654,2988.6,2987.5,1.47148804]
[1768940103099,1.24980654,2988.6,2987.8,0.16755]
[1768940103302,1.42138661,2989.5,2987.9,0.16754]
[1768940103494,1.42138661,2989.5,2988.0,0.16754]
[1768940104298,1.42522116,2989.5,2988.0,0.16754]
[1768940104491,0.00383455,2989.5,2988.2,1.81752118]
[1768940104898,0.00383455,2989.5,2988.2,2.67575543]
[1768940105200,0.00383455,2989.5,2988.3,0.85822425]
[1768940105707,3.351,2990.9,2987.4,5.30136532]
[1768940105708,1.42138661,2990.3,2988.6,2.50822543]
[1768940105900,0.8559,2990.1,2988.6,2.50822543]
[1768940106506,0.8559,2990.1,2988.7,0.86126415]
[1768940106705,0.85953146,2990.1,2988.7,0.86126415]
[1768940108004,2.28091807,2990.1,2988.7,0.1675]
[1768940108801,0.85953146,2990.1,2988.7,0.88364487]
[1768940109608,0.85953146,2990.1,2989.0,1.81752118]
[1768940109799,0.85953146,2990.1,2989.1,0.16748]
[1768940110399,1.42138661,2991.0,2989.1,0.88023706]
[1768940111104,1.42138661,2991.0,2989.1,0.16748]
[1768940111508,1.42138661,2990.7,2989.1,0.16748]
[1768940111706,1.42420597,2990.7,2989.1,0.16748]
[1768940113105,1.42420597,2990.7,2988.6,1.81752118]
[1768940113311,1.42420597,2990.7,2988.6,1.98503118]
[1768940113812,1.59159597,2990.7,2988.6,1.98503118]
[1768940115008,1.42420597,2990.7,2989.0,1.81752118]
[1768940115210,1.42420597,2990.7,2989.2,0.16747]
[1768940124913,1.42420597,2990.7,2989.4,0.16746]
[1768940125113,1.42420597,2990.7,2989.4,1.98498118]
[1768940125713,1.42420597,2990.7,2989.2,3.349]
[1768940126116,1.42420597,2990.7,2988.9,0.16749]
[1768940126417,1.59159597,2990.7,2988.9,0.16749]
[1768940128411,1.59159597,2990.7,2989.0,0.16748]
[1768940128611,1.42420597,2990.7,2989.2,0.16747]
[1768940133038,2.72993867,2990.6,2989.5,1.17647468]
[1768940133232,2.72993867,2990.6,2989.5,1.17976436]
[1768940135132,1.84670433,2990.5,2989.5,1.17976436]
[1768940135334,1.55346399,2990.5,2989.5,1.17976436]
[1768940135736,1.55346399,2990.0,2989.0,1.17647468]
[1768940136126,1.55346399,2990.4,2989.4,1.17647468]
[1768940136327,0.17020936,2990.7,2989.8,1.17647468]
[1768940136634,1.17460682,2990.6,2989.8,1.17647468]
[1768940136839,1.17460682,2990.5,2989.8,1.17952309]
[1768940137043,0.29336153,2990.4,2989.8,1.17952309]
[1768940137230,1.55628335,2990.7,2990.0,1.17647468]
[1768940137434,0.87756228,2990.6,2990.2,1.17647468]
[1768940137631,0.00281936,2990.7,2990.4,1.17647468]
[1768940138141,1.55346399,2991.1,2990.4,1.17647468]
[1768940138337,1.17074515,2991.0,2990.2,1.17647468]
[1768940138536,1.55346399,2991.1,2990.2,1.17647468]
[1768940138736,1.1707079,2991.0,2990.2,1.17647468]
[1768940138931,1.55346399,2991.1,2989.8,0.00304841]
[1768940139139,1.55346399,2990.9,2989.8,0.00304841]
[1768940139544,0.29251835,2990.8,2989.8,0.00304841]
[1768940139844,1.55346399,2990.9,2989.8,0.00304841]
[1768940144550,1.57425413,2990.7,2989.8,0.00304841]
[1768940144845,1.16881304,2990.8,2988.9,0.16749]
[1768940144846,1.57425413,2990.5,2988.9,0.16749]
[1768940145143,1.64456627,2990.3,2988.9,0.16749]
[1768940145735,1.64456627,2990.3,2988.9,0.1715108]
[1768940146333,1.81194627,2990.8,2989.0,1.98183025]
[1768940146534,1.64456627,2990.6,2989.0,1.98183025]
[1768940146735,1.16867821,2990.5,2989.0,1.98183025]
[1768940146939,1.64456627,2990.6,2989.0,1.98183025]
[1768940147142,1.16868548,2990.5,2989.0,1.98183025]
[1768940147341,1.64456627,2990.6,2989.0,1.98183025]
[1768940147536,0.29228036,2990.5,2989.0,1.98183025]
[1768940147746,1.64456627,2990.6,2989.2,0.16747]
[1768940147944,1.64456627,2990.6,2989.4,1.81435025]
[1768940148946,1.64456627,2991.0,2989.4,1.98181025]
[1768940149151,0.29233629,2990.9,2989.5,0.16745]
[1768940149348,1.64456627,2991.0,2989.5,0.16745]
[1768940150449,1.64456627,2991.0,2989.8,1.81435025]
[1768940150643,1.64456627,2991.0,2989.8,3.75935025]
[1768940156963,1.64456627,2990.8,2989.5,3.01040124]
[1768940157159,1.64456627,2990.6,2989.2,1.945]
[1768940157362,1.64456627,2990.6,2989.3,1.81435025]
[1768940157664,1.64456627,2990.6,2989.3,1.98182025]
[1768940158663,1.64456627,2991.0,2989.7,1.81435025]
[1768940158964,1.64456627,2991.0,2989.7,1.98179025]
[1768940160954,1.64456627,2991.0,2990.2,1.17597926]
[1768940161158,1.64456627,2991.0,2990.0,1.17597926]
[1768940161657,1.64456627,2990.7,2989.6,1.17597926]
[1768940162062,1.17597926,2990.8,2989.6,1.17597926]
[1768940162063,1.64456627,2990.5,2989.6,1.17597926]
[1768940162564,1.64456627,2990.5,2989.4,1.17597926]
[1768940162970,1.64456627,2990.5,2989.3,1.945]
[1768940163866,1.64456627,2990.3,2989.0,3.01040124]
[1768940164171,1.64456627,2990.1,2988.9,0.0040208]
[1768940164558,1.64456627,2989.9,2988.9,0.0040208]
[1768940165371,1.64456627,2990.3,2988.9,0.0040208]
[1768940166771,1.64456627,2990.8,2989.1,0.16748]
[1768940167070,1.64456627,2990.6,2989.1,0.16748]
[1768940167677,1.64456627,2990.4,2989.1,1.945]
[1768940168868,1.64456627,2990.4,2989.0,1.945]
[1768940170278,1.64456627,2990.4,2988.9,0.0040208]
[1768940170479,1.64456627,2990.4,2988.9,1.9490208]
[1768940171780,1.64456627,2990.4,2988.9,0.0040208]
[1768940174681,1.64456627,2990.4,2988.9,0.1715108]
[1768940175179,1.64456627,2990.4,2988.9,0.0040208]
[1768940175484,1.64456627,2990.4,2989.1,0.16747]
[1768940177688,0.00291771,2991.1,2989.5,1.81517543]
[1768940177689,1.81290301,2991.0,2989.5,1.81517543]
[1768940178580,1.81290301,2991.0,2989.7,0.16744]
[1768940178782,1.81290301,2991.0,2989.8,1.945]
[1768940181980,2.07600606,2991.9,2990.5,1.81517543]
[1768940182180,1.81290301,2991.9,2990.6,1.945]
[1768940182985,1.81633807,2991.9,2990.6,1.945]
[1768940184779,1.81633807,2991.9,2990.7,0.16739]
[1768940184982,1.81633807,2991.9,2991.2,1.17495662]
[1768940185190,1.81633807,2991.9,2991.2,1.17759584]
[1768940186778,1.81633807,2991.9,2991.2,0.00263922]
[1768940190785,1.81633807,2991.9,2990.7,0.16739]
[1768940190987,1.81633807,2991.9,2990.3,1.17495662]
[1768940191190,1.81633807,2991.9,2990.4,1.944]
[1768940191898,1.81633807,2991.9,2990.6,1.17495662]
[1768940192694,1.81633807,2991.9,2991.2,1.17495662]
[1768940192887,0.16727,2992.9,2991.5,1.17495662]
[1768940193189,5.33787003,2993.2,2991.8,1.17495662]
[1768940193397,0.29075383,2993.1,2991.8,1.17495662]
[1768940193692,0.16724,2993.3,2991.5,1.17495662]
[1768940193998,1.15976717,2993.2,2991.5,1.17495662]
[1768940194294,0.43814424,2993.3,2991.5,1.17495662]
[1768940194492,1.15941747,2993.2,2991.5,1.17495662]
[1768940194693,0.17088047,2993.3,2991.5,1.17495662]
[1768940194894,1.81290301,2993.1,2991.5,1.17495662]
[1768940195492,1.81290301,2993.1,2991.8,1.17495662]
[1768940195695,1.81290301,2993.1,2992.1,1.17495662]
[1768940195896,0.00364047,2993.3,2992.4,1.17495662]
[1768940196199,1.81654348,2993.3,2992.1,1.17495662]
[1768940196495,1.81290301,2993.2,2991.8,0.16733]
[1768940197297,1.81290301,2993.2,2991.6,1.944]
[1768940197298,1.81290301,2993.2,2991.5,3.11795662]
[1768940198901,1.81290301,2993.2,2991.8,1.17495662]
[1768940200801,1.81290301,2993.2,2991.5,3.28529662]
[1768940201601,1.98015301,2993.2,2991.5,1.17495662]
[1768940201802,1.81290301,2992.9,2991.1,1.17495662]
[1768940202001,1.81290301,2992.9,2991.2,1.943]
[1768940202801,1.81290301,2992.9,2991.4,1.17495662]
[1768940202998,1.81290301,2992.9,2991.4,1.82366377]
[1768940203304,1.81290301,2992.9,2991.2,1.943]
[1768940203305,1.81654348,2993.3,2991.6,1.65631377]
[1768940203509,1.81654348,2993.3,2991.8,1.65631377]
[1768940204406,1.81654348,2993.3,2991.7,0.16733]
[1768940205208,1.98379348,2993.3,2991.3,1.943]
[1768940205506,1.98379348,2993.3,2991.3,2.11035]
[1768940205703,1.98379348,2993.3,2991.5,2.05719175]
[1768940206109,1.98379348,2993.3,2991.6,2.05719175]
[1768940206110,1.81654348,2993.3,2991.6,2.05719175]
[1768940208519,0.00364047,2993.3,2991.8,1.88985175]
[1768940208714,1.7873934,2993.7,2992.2,1.8124781]
[1768940209017,1.7873934,2993.7,2991.7,1.8124781]
[1768940209018,1.7873934,2994.3,2992.5,0.16729]
[1768940209221,1.16115275,2994.2,2992.5,0.16729]
[1768940209409,1.7873934,2994.1,2992.5,0.16729]
[1768940209618,1.7873934,2994.1,2992.7,0.16728]
[1768940209812,1.79053217,2994.1,2992.7,0.17054297]
[1768940210514,1.79053217,2994.1,2992.7,0.00326297]
[1768940214518,1.79053217,2994.1,2992.7,0.17054297]
[1768940214914,1.79053217,2994.1,2992.7,0.00326297]
[1768940215625,1.95773217,2994.1,2992.7,0.00326297]
[1768940215819,1.9546034,2993.9,2991.8,2.10932]
[1768940216123,1.7873934,2993.7,2991.9,0.16732]
[1768940216917,1.7873934,2993.7,2991.9,0.17109532]
[1768940218812,1.7873934,2993.7,2991.9,2.06094707]
[1768940219215,1.7873934,2993.7,2992.0,1.88985175]
[1768940220222,1.79053217,2994.1,2992.3,1.88985175]
[1768940220428,1.16262886,2994.0,2992.3,1.88985175]
[1768940220731,2.95002226,2993.9,2992.3,1.88985175]
[1768940220929,0.87131498,2993.8,2992.3,1.88985175]
[1768940221226,1.7873934,2993.9,2992.3,1.88985175]
[1768940221429,1.7873934,2993.7,2991.9,0.00377532]
[1768940221731,1.7873934,2993.7,2992.2,2.05715175]
[1768940222029,1.7873934,2993.7,2991.9,1.94477532]
[1768940222030,0.00313877,2994.1,2992.6,2.05713175]
[1768940222625,1.7873934,2994.5,2993.1,0.16725]
[1768940222827,1.7873934,2995.0,2993.1,3.99810175]
[1768940223026,1.16229372,2994.9,2993.2,2.05710175]
[1768940223232,1.7873934,2995.0,2993.2,2.05710175]
[1768940223422,1.7873934,2994.8,2993.3,1.941]
[1768940223625,1.790521,2994.8,2993.3,1.941]
[1768940224123,1.790521,2994.8,2993.3,3.83085175]
[1768940225030,0.0031276,2994.8,2993.6,1.81004805]
[1768940226633,0.0031276,2994.8,2993.6,3.6998998]
[1768940226831,0.0031276,2994.8,2993.7,2.05707175]
[1768940227134,2.05732156,2996.3,2994.4,1.81004805]
[1768940227335,1.7873934,2996.0,2994.2,1.941]
[1768940227932,1.79116564,2996.0,2994.2,4.00161511]
[1768940228135,1.79116564,2996.0,2994.4,3.6998998]
[1768940229039,1.95825564,2996.0,2994.2,1.94457336]
[1768940231637,1.79116564,2996.0,2994.3,1.88985175]
[1768940233146,1.79116564,2996.0,2994.3,3.6998998]
[1768940233344,1.79116564,2996.0,2994.5,0.16718]
[1768940233550,0.00377224,2996.0,2994.5,2.05703175]
[1768940235637,0.00377224,2996.0,2994.6,1.94]
[1768940237150,0.00377224,2996.0,2995.1,1.81004805]
[1768940237348,0.00377224,2996.0,2994.9,2.02640088]
[1768940238137,0.00377224,2996.0,2995.1,1.81004805]
[1768940238342,2.14578924,2996.9,2995.1,3.83644893]
[1768940238952,2.14578924,2996.9,2994.6,1.94]
[1768940238953,1.97874924,2996.9,2995.5,1.81004805]
[1768940239149,1.97874924,2996.9,2995.5,3.74904805]
[1768940239450,0.00400832,2996.9,2995.5,5.77544893]
[1768940239638,0.00400832,2996.9,2995.6,2.02640088]
[1768940239836,0.00400832,2996.9,2995.9,3.83644893]
[1768940240446,1.97874924,2997.8,2996.3,1.81004805]
[1768940240949,1.97874924,2998.4,2996.4,1.939]
[1768940241152,1.97874924,2998.4,2996.4,3.96540088]
[1768940241343,1.98136273,2998.4,2996.7,1.81004805]
[1768940241540,0.00261349,2998.4,2996.9,2.02640088]
[1768940242156,0.00261349,2998.4,2997.1,1.81004805]
[1768940242650,0.00261349,2998.4,2997.2,2.02640088]
[1768940242845,0.00261349,2998.4,2997.3,3.96540088]
[1768940243046,0.00261349,2998.4,2997.4,2.02640088]
[1768940243247,1.97874924,2999.3,2997.5,3.83644893]
[1768940243949,1.97874924,2999.7,2997.9,1.81004805]
[1768940244150,1.98258432,2999.7,2997.9,1.81004805]
[1768940244350,0.00383508,2999.7,2998.3,3.83644893]
[1768940244548,0.00383508,2999.7,2998.4,3.73740088]
[1768940245150,1.98258432,2999.7,2997.8,2.02640088]
[1768940245343,1.98258432,2999.7,2997.9,1.482]
[1768940245949,1.98258432,2999.7,2997.8,2.02640088]
[1768940246150,1.97874924,2999.5,2997.2,3.83644893]
[1768940246351,1.97874924,2999.1,2997.2,2.02640088]
[1768940246552,1.97874924,2999.1,2997.2,3.16540088]
[1768940247053,1.97874924,2999.6,2997.7,2.02640088]
[1768940247448,0.00383508,2999.7,2997.4,0.16701]
[1768940247449,1.97874924,2999.3,2997.4,0.16701]
[1768940247659,1.97874924,2999.3,2997.4,1.33901]
[1768940247855,1.97874924,2999.3,2997.4,1.172]
[1768940248051,1.97874924,2999.3,2997.4,1.938]
[1768940248653,2.14565924,2999.3,2997.3,1.938]
[1768940251053,0.00383508,2999.7,2997.7,2.02640088]
[1768940251259,0.00383508,2999.7,2998.0,1.81004805]
[1768940251453,0.00383508,2999.7,2997.3,1.938]
[1768940251454,0.00383508,2999.7,2998.1,2.02640088]
[1768940251654,1.97874924,3000.3,2998.8,1.81004805]
[1768940251957,1.97874924,3000.8,2998.8,3.30604805]
[1768940252862,1.98120505,3000.8,2998.8,3.3099869]
[1768940254155,1.98120505,3000.8,2998.8,0.00393885]
[1768940254356,2.14803505,3000.8,2998.8,0.00393885]
[1768940254656,1.97874924,3000.6,2998.8,0.00393885]
[1768940254855,2.14558924,3000.6,2998.8,0.00393885]
[1768940255464,1.97874924,3000.4,2998.8,0.00393885]
[1768940255663,1.97874924,2999.8,2998.8,0.00393885]
[1768940255860,1.97874924,2999.8,2997.6,1.97704805]
[1768940256064,1.97874924,2999.5,2997.6,3.32504805]
[1768940256659,2.14564924,2999.5,2997.6,1.81004805]
[1768940256858,2.14564924,2999.5,2997.6,1.81396429]
[1768940257968,2.14564924,2999.5,2998.0,1.81004805]
[1768940260173,11.08398768,3001.0,2997.6,0.00391624]
[1768940260174,1.97874924,3000.1,2999.0,1.81004805]
[1768940260362,1.97874924,3000.1,2998.6,1.81004805]
[1768940261064,9.49403573,3001.0,2998.6,1.81004805]
[1768940261065,1.97874924,3000.6,2998.6,3.83644893]
[1768940262869,2.14558924,3000.6,2998.6,3.83644893]
[1768940263268,2.14558924,3000.6,2998.5,5.44195]
[1768940263269,1.97874924,3000.6,2999.0,1.81004805]
[1768940265066,1.97874924,3000.6,2999.0,3.90152045]
[1768940265270,0.00245581,3000.8,2999.1,2.0914724]
[1768940265467,0.00245581,3000.8,2999.0,1.81004805]
[1768940265468,0.00245581,3000.8,2999.2,2.2583824]
[1768940266267,0.00245581,3000.8,2999.4,1.81004805]
[1768940267166,0.00245581,3000.8,2999.4,3.90152045]
[1768940267472,0.00245581,3000.8,2999.5,2.0914724]
[1768940268274,0.00245581,3000.8,2999.4,1.81004805]
[1768940268476,2.11957982,3000.8,2999.2,1.935]
[1768940268971,2.11957982,3000.8,2999.0,4.06844045]
[1768940269278,2.11712401,3000.6,2998.5,3.90152045]
[1768940269469,2.11712401,3000.6,2998.6,2.2584224]
[1768940270371,2.11712401,3000.4,2998.6,2.2584224]
[1768940270670,2.11712401,3000.4,2998.6,0.16695]
[1768940270971,2.28397401,3000.4,2998.6,0.16695]
[1768940271173,2.28397401,3000.4,2998.5,1.81004805]
[1768940271971,2.28397401,3000.4,2998.5,3.90152045]
[1768940272369,2.28397401,3000.4,2998.6,2.0914724]
[1768940272862,0.00245581,3000.8,2998.3,5.274]
[1768940272863,2.11957982,3000.8,2998.9,3.90152045]
[1768940273069,3.2736714,3000.7,2998.9,3.90152045]
[1768940273264,0.8662834,3000.6,2998.9,3.90152045]
[1768940273674,2.98340741,3000.6,2998.9,3.90152045]
[1768940273975,0.8662834,3000.5,2998.9,3.90152045]
[1768940274472,0.00245581,3000.8,2999.3,3.90152045]
[1768940274977,0.00245581,3000.8,2999.4,2.0914724]
[1768940276372,2.28397401,3000.5,2998.7,2.0914724]
[1768940276574,0.00245581,3000.8,2999.1,2.0914724]
[1768940276771,1.15687771,3000.7,2999.1,2.0914724]
[1768940276976,0.00245581,3000.8,2999.1,2.0914724]
[1768940277976,0.00245581,3000.8,2999.4,3.90152045]
[1768940278279,0.00245581,3000.8,2999.4,4.06842045]
[1768940279377,0.00245581,3000.8,2999.4,2.2583724]
[1768940280873,2.11957982,3000.8,2998.7,0.16694]
[1768940281186,0.86712537,3000.7,2998.7,2.2584124]
[1768940281479,0.86712537,3000.6,2998.9,2.0914724]
[1768940281683,0.00245581,3000.8,2999.3,2.0914724]
[1768940284477,0.00245581,3000.8,2999.3,2.2583824]
[1768940284677,0.00245581,3000.8,2999.7,2.0914724]
[1768940284878,0.00245581,3000.8,2999.7,2.09403646]
[1768940285078,2.11712401,3001.8,3000.0,1.81004805]
[1768940285282,1.15738545,3001.7,3000.0,1.81004805]
[1768940285480,1.15738545,3001.6,3000.0,3.90152045]
[1768940285677,1.15738545,3001.5,3000.0,2.0914724]
[1768940285989,0.8669675,3001.4,3000.0,2.0914724]
[1768940286180,0.0026157,3001.4,3000.0,3.90152045]
[1768940286375,0.0026157,3001.4,3000.1,2.0914724]
[1768940286590,0.0026157,3001.4,3000.1,2.2583324]
[1768940286885,2.11712401,3002.3,3000.5,2.2583124]
[1768940287091,0.86546767,3002.2,3000.5,2.2583124]
[1768940287288,2.11712401,3002.3,3000.5,2.2583124]
[1768940287479,0.16673,3002.6,3000.5,2.2583124]
[1768940287789,2.11712401,3002.4,3000.5,2.2583124]
[1768940287989,2.11712401,3002.2,3000.5,2.2583124]
[1768940289589,0.86539129,3002.1,3000.5,2.0914724]
[1768940289783,0.86539129,3002.0,3000.0,2.0914724]
[1768940290087,2.11712401,3001.9,3000.0,2.0914724]
[1768940290289,2.11712401,3001.7,3000.0,2.0914724]
[1768940290484,2.98258961,3001.6,3000.0,2.0914724]
[1768940290785,2.11712401,3001.4,2999.7,0.00256406]
[1768940290989,2.98263255,3001.3,2999.7,0.00256406]
[1768940291183,2.98189668,3001.2,2999.7,0.00256406]
[1768940291489,0.1668,3001.4,2999.7,0.00256406]
[1768940291691,0.86490034,3001.3,2999.7,0.00256406]
[1768940291893,2.98202435,3001.2,2999.7,0.00256406]
[1768940292189,2.11712401,3001.1,2999.7,0.00256406]
[1768940292378,0.1668,3001.4,2999.7,2.09403646]
[1768940292580,0.86498531,3001.3,2999.7,2.26091646]
[1768940292789,2.11712401,3001.6,2999.7,2.26091646]
[1768940292993,1.15530152,3001.5,2999.7,2.26091646]
[1768940293196,0.86495221,3001.4,3000.0,2.0914724]
[1768940293379,2.11712401,3002.1,2999.7,0.00256406]
[1768940293380,2.11712401,3002.1,3000.2,2.0914724]
[1768940293582,1.15534351,3002.0,3000.4,2.2583224]
[1768940293778,2.11712401,3002.1,3000.5,2.2583124]
[1768940293985,0.00240901,3002.4,3000.8,2.2582924]
[1768940294187,0.00240901,3002.4,3001.0,0.16681]
[1768940294390,0.00240901,3002.4,3001.2,2.2582724]
[1768940294689,0.00240901,3002.4,3001.3,2.2582724]
[1768940295079,0.00240901,3002.4,3001.4,2.29730958]
[1768940295392,0.00240901,3002.4,3000.3,4.21456174]
[1768940295393,2.11655855,3004.1,3002.0,2.13051958]
[1768940295593,0.86293718,3004.0,3002.2,2.29726958]
[1768940295790,2.11655855,3004.1,3002.3,2.29725958]
[1768940296093,2.28316855,3004.8,3002.3,2.29725958]
[1768940296289,2.11655855,3004.6,3002.3,2.30119641]
[1768940296488,2.9792308,3004.5,3002.3,2.30119641]
[1768940296680,2.11655855,3004.3,3002.3,2.30119641]
[1768940296998,2.11655855,3004.1,3002.3,0.00393683]
[1768940297192,2.11655855,3003.9,3002.3,0.00393683]
[1768940297589,2.11655855,3003.7,3002.3,0.00393683]
[1768940298688,2.11655855,3004.2,3002.3,0.00393683]
[1768940298890,2.11655855,3003.6,3002.3,0.00393683]
[1768940299096,2.11655855,3003.1,3000.7,6.80334958]
[1768940299287,2.11655855,3003.1,3000.8,2.13051958]
[1768940299480,2.11655855,3003.1,3000.7,4.67283]
[1768940299481,2.11655855,3003.1,3001.3,2.13051958]
[1768940300085,2.11655855,3003.1,3001.3,2.13475429]
[1768940300694,2.11655855,3003.1,3001.3,0.00423471]
[1768940301294,2.28325855,3003.1,3001.3,0.00423471]
[1768940302590,2.11655855,3003.1,3001.3,0.00423471]
[1768940302794,2.11655855,3003.1,3001.4,2.29730958]
[1768940302995,4.20497686,3004.6,3001.3,0.00423471]
[1768940302996,2.11655855,3004.1,3001.6,2.13051958]
[1768940303197,2.11655855,3004.7,3002.8,2.29722958]
[1768940303393,0.00334887,3004.8,3003.1,2.29720958]
[1768940303593,0.00334887,3004.8,3003.4,2.29719958]